fUSD/lending_fUSD_20260622
["ID","MTS","AMOUNT","RATE_DAILY","PERIOD"]
[426014753,1782118008000,-151.0,0.00012574,2]
[426014751,1782118008000,-150.0,0.00012574,2]
[426014760,1782118009000,-1000.0,0.00012731,2]
[426014758,1782118009000,-358.88374525,0.00012731,2]
[426014759,1782118009000,-641.11625475,0.00012731,2]
[426014757,1782118009000,-1000.0,0.00012731,2]
[426014756,1782118009000,-945.76545475,0.00012731,2]
[426014764,1782118010000,-1000.0,0.00012731,2]
[426014763,1782118010000,-1000.0,0.00012731,2]
[426014762,1782118010000,-141.11625475,0.00012731,2]
[426014761,1782118010000,-858.88374525,0.00012731,2]
[426014765,1782118011000,-1000.0,0.00012731,2]
[426014766,1782118011000,-1000.0,0.00012731,2]
[426014769,1782118011000,-22.90828743,0.00012766,2]
[426014768,1782118011000,-868.90086732,0.00012732,2]
[426014767,1782118011000,-108.19084525,0.00012731,2]
[426014775,1782118012000,-173.24479151,0.00012767,2]
[426014770,1782118012000,-130.09171257,0.00012766,2]
[426014771,1782118012000,-151.0,0.00012766,2]
[426014772,1782118012000,-151.0,0.00012766,2]
[426014773,1782118012000,-151.0,0.00012766,2]
[426014774,1782118012000,-152.0,0.00012766,2]
[426014776,1782118012000,-91.66349592,0.00012774,2]
[426014784,1782118012000,-152.97930532,0.00012829,2]
[426014778,1782118012000,-163.6599497,0.00012821,2]
[426014779,1782118012000,-500.0,0.00012829,2]
[426014780,1782118012000,-226.359285,0.00012829,2]
[426014781,1782118012000,-273.640715,0.00012829,2]
[426014783,1782118012000,-334.9598333,0.00012829,2]
[426014782,1782118012000,-238.42014638,0.00012829,2]
[426014777,1782118012000,-109.9807653,0.00012774,2]
[426014786,1782118013000,-298.26960492,0.00012829,2]
[426014787,1782118013000,-354.7097004,0.00012829,2]
[426014785,1782118013000,-347.02069468,0.00012829,2]
[426014790,1782118013000,-241.10526732,0.00012829,2]
[426014789,1782118013000,-500.0,0.00012829,2]
[426014788,1782118013000,-258.89473268,0.00012829,2]
[426014793,1782118014000,-412.59197558,0.00012829,2]
[426014791,1782118014000,-87.40802442,0.00012829,2]
[426014795,1782118014000,-912.59197558,0.0001283,3]
[426014794,1782118014000,-87.40802442,0.00012829,2]
[426014792,1782118014000,-500.0,0.00012829,2]
[426014803,1782118015000,-540.19667509,0.0001283,3]
[426014802,1782118015000,-459.80332491,0.0001283,3]
[426014801,1782118015000,-633.29550021,0.0001283,3]
[426014800,1782118015000,-366.70449979,0.0001283,3]
[426014798,1782118015000,-273.60567467,0.0001283,3]
[426014799,1782118015000,-726.39432533,0.0001283,3]
[426014797,1782118015000,-819.49315045,0.0001283,3]
[426014796,1782118015000,-180.50684955,0.0001283,3]
[426014805,1782118016000,-447.09784997,0.0001283,3]
[426014806,1782118016000,-646.00097515,0.0001283,3]
[426014804,1782118016000,-552.90215003,0.0001283,3]
[426014808,1782118016000,-739.09980027,0.0001283,3]
[426014807,1782118016000,-353.99902485,0.0001283,3]
[426014809,1782118016000,-260.90019973,0.0001283,3]
[426014810,1782118017000,-832.19862539,0.0001283,3]
[426014811,1782118017000,-167.80137461,0.0001283,3]
[426014812,1782118017000,-925.29745051,0.0001283,3]
[426014814,1782118017000,-152.0,0.00012731,2]
[426014815,1782118017000,-848.0,0.0001283,3]
[426014813,1782118017000,-74.70254949,0.0001283,3]
[426014821,1782118018000,-643.40607413,0.0001283,2]
[426014820,1782118018000,-356.59392587,0.0001283,3]
[426014818,1782118018000,-263.49510075,0.0001283,3]
[426014816,1782118018000,-170.39627563,0.0001283,3]
[426014817,1782118018000,-829.60372437,0.0001283,3]
[426014819,1782118018000,-736.50489925,0.0001283,3]
[426014825,1782118019000,-1000.0,0.00012831,2]
[426014824,1782118019000,-1000.0,0.00012831,2]
[426014822,1782118019000,-246.66292587,0.0001283,2]
[426014823,1782118019000,-753.33707413,0.00012831,2]
[426014827,1782118020000,-1000.0,0.00012831,2]
[426014826,1782118020000,-1000.0,0.00012831,2]
[426014828,1782118021000,-1000.0,0.00012831,2]
[426014829,1782118021000,-1000.0,0.00012831,2]
[426014830,1782118021000,-1000.0,0.00012831,2]
[426014831,1782118022000,-1000.0,0.00012831,2]
[426014833,1782118022000,-1000.0,0.00012831,2]
[426014832,1782118022000,-1000.0,0.00012831,2]
[426014834,1782118023000,-1000.0,0.00012831,2]
[426014836,1782118023000,-1000.0,0.00012831,2]
[426014835,1782118023000,-1000.0,0.00012831,2]
[426014838,1782118024000,-1000.0,0.00012831,2]
[426014837,1782118024000,-1000.0,0.00012831,2]
[426014841,1782118025000,-1000.0,0.00012831,2]
[426014840,1782118025000,-1000.0,0.00012831,2]
[426014839,1782118025000,-1000.0,0.00012831,2]
[426014844,1782118026000,-1000.0,0.00012831,2]
[426014843,1782118026000,-1000.0,0.00012831,2]
[426014842,1782118026000,-1000.0,0.00012831,2]
[426014845,1782118027000,-1000.0,0.00012831,2]
[426014847,1782118027000,-1000.0,0.00012831,2]
[426014846,1782118027000,-1000.0,0.00012831,2]
[426014849,1782118028000,-1000.0,0.00012831,2]
[426014848,1782118028000,-1000.0,0.00012831,2]
[426014850,1782118028000,-1000.0,0.00012831,2]
[426014852,1782118029000,-1000.0,0.00012831,2]
[426014851,1782118029000,-1000.0,0.00012831,2]
[426014855,1782118030000,-1000.0,0.00012831,2]
[426014854,1782118030000,-1000.0,0.00012831,2]
[426014853,1782118030000,-1000.0,0.00012831,2]
[426014856,1782118031000,-1000.0,0.00012831,2]
[426014857,1782118033000,-1000.0,0.00012831,2]
[426014859,1782118050000,-600.0,0.0001273,2]
[426014858,1782118050000,-400.0,0.000127,4]
[426014860,1782118051000,-1000.0,0.0001273,2]
[426014861,1782118052000,-1000.0,0.0001273,2]
[426014862,1782118053000,-1000.0,0.0001273,2]
[426014863,1782118054000,-1000.0,0.0001273,2]
[426014865,1782118055000,-1000.0,0.0001273,2]
[426014864,1782118055000,-1000.0,0.0001273,2]
[426014866,1782118056000,-1000.0,0.0001273,2]
[426014867,1782118061000,-657.0,0.0001273,2]
[426014889,1782118232000,-1200.0,0.000129,4]
[426014891,1782118232000,-150.0,0.00012936,2]
[426014893,1782118232000,-151.0,0.00012982,2]
[426014895,1782118232000,-151.0,0.00012982,2]
[426014899,1782118232000,-150.0,0.00013022,7]
[426014897,1782118232000,-150.0,0.00012984,2]
[426014901,1782118232000,-246.72502933,0.00013095,2]
[426014902,1782118232000,-176.12,0.00013269,2]
[426014915,1782118232000,-500.0,0.00013698,2]
[426014909,1782118232000,-500.0,0.00013698,2]
[426014907,1782118232000,-500.0,0.00013698,2]
[426014904,1782118232000,-500.0,0.00013698,2]
[426014913,1782118232000,-500.0,0.00013698,2]
[426014900,1782118232000,-224.72842362,0.00013022,7]
[426014905,1782118232000,-500.0,0.00013698,2]
[426014916,1782118232000,-500.0,0.00013698,2]
[426014911,1782118232000,-500.0,0.00013698,2]
[426014887,1782118232000,-10202.946,0.00012832,2]
[426014870,1782118232000,-150.0,0.00012729,2]
[426014885,1782118232000,-1000.0,0.00012831,2]
[426014918,1782118232000,-500.0,0.00013698,2]
[426014871,1782118232000,-234.47188331,0.00012729,2]
[426014872,1782118232000,-166.89410247,0.00012729,2]
[426014876,1782118232000,-152.0,0.0001273,2]
[426014875,1782118232000,-279.52310315,0.00012729,2]
[426014874,1782118232000,-558.78872345,0.00012729,2]
[426014873,1782118232000,-500.0,0.00012729,2]
[426014888,1782118232000,-150.0,0.00012856,2]
[426014878,1782118232000,-150.0,0.0001273,2]
[426014879,1782118232000,-150.0,0.0001273,2]
[426014880,1782118232000,-150.0,0.00012731,2]
[426014877,1782118232000,-33807.9301,0.0001273,2]
[426014884,1782118232000,-152.0,0.00012831,2]
[426014882,1782118232000,-800.0,0.000128,4]
[426014883,1782118232000,-151.0,0.00012831,2]
[426014886,1782118232000,-1004.72682314,0.00012831,2]
[426014881,1782118232000,-1651.70309309,0.00012731,2]
[426014917,1782118232000,-500.0,0.00013698,2]
[426014903,1782118232000,-500.0,0.00013698,2]
[426014921,1782118232000,-500.0,0.00013698,2]
[426014941,1782118232000,-300.0,0.00014114,2]
[426014942,1782118232000,-200.0,0.00014114,2]
[426014943,1782118232000,-200.0,0.00014114,2]
[426014944,1782118232000,-200.0,0.00014114,2]
[426014945,1782118232000,-200.0,0.00014114,2]
[426014947,1782118232000,-158.22,0.00014256,2]
[426014946,1782118232000,-200.81968937,0.00014114,2]
[426014948,1782118232000,-1651.703093,0.00014345,2]
[426014950,1782118232000,-500.0,0.00014999,2]
[426014951,1782118232000,-186.68427834,0.00014999,2]
[426014949,1782118232000,-500.0,0.00014997,2]
[426014952,1782118232000,-1000.0,0.00015,2]
[426014954,1782118232000,-150.0,0.00015068,2]
[426014956,1782118232000,-313.0,0.00015151,2]
[426014955,1782118232000,-993.63,0.000151,2]
[426014957,1782118232000,-314.0,0.00015274,2]
[426014919,1782118232000,-500.0,0.00013698,2]
[426014940,1782118232000,-300.0,0.00014114,2]
[426014938,1782118232000,-300.0,0.00014114,2]
[426014953,1782118232000,-247.0,0.00015008,2]
[426014936,1782118232000,-600.0,0.00014114,2]
[426014922,1782118232000,-500.0,0.00013698,2]
[426014939,1782118232000,-300.0,0.00014114,2]
[426014923,1782118232000,-583.76277032,0.00013698,2]
[426014920,1782118232000,-500.0,0.00013698,2]
[426014924,1782118232000,-500.0,0.00013698,2]
[426014926,1782118232000,-502.56753259,0.00013698,2]
[426014925,1782118232000,-538.9571023,0.00013698,2]
[426014929,1782118232000,-150.0,0.00013698,2]
[426014927,1782118232000,-500.0,0.00013698,2]
[426014930,1782118232000,-200.0,0.00013699,2]
[426014932,1782118232000,-600.0,0.00014114,2]
[426014931,1782118232000,-255.0,0.00013824,2]
[426014937,1782118232000,-300.0,0.00014114,2]
[426014933,1782118232000,-600.0,0.00014114,2]
[426014934,1782118232000,-600.0,0.00014114,2]
[426014928,1782118232000,-266.08258867,0.00013698,2]
[426014935,1782118232000,-600.0,0.00014114,2]
[426014991,1782118233000,-1651.703093,0.00017574,2]
[426014999,1782118233000,-1672.7364795,0.00018175,2]
[426014998,1782118233000,-986.80631249,0.00018,2]
[426015000,1782118233000,-204.4,0.000182,2]
[426014993,1782118233000,-3564.15,0.00017728,2]
[426014995,1782118233000,-216.0,0.00017808,2]
[426014996,1782118233000,-204.4,0.00018,2]
[426014997,1782118233000,-160.0338645,0.00018,2]
[426014992,1782118233000,-1613.0535,0.00017627,2]
[426015002,1782118233000,-986.80631249,0.000182,2]
[426014990,1782118233000,-201.0,0.00017484,3]
[426014994,1782118233000,-1997.01,0.00017728,2]
[426015003,1782118233000,-158.22,0.00018329,2]
[426015010,1782118233000,-986.80631249,0.000185,2]
[426015004,1782118233000,-5969.75,0.00018356,2]
[426015009,1782118233000,-160.0338645,0.000185,2]
[426015005,1782118233000,-204.4,0.000184,2]
[426015008,1782118233000,-320.4,0.0001841,2]
[426015001,1782118233000,-160.0338645,0.000182,2]
[426015007,1782118233000,-986.80631249,0.000184,2]
[426015012,1782118233000,-2561.0,0.00018621,5]
[426015011,1782118233000,-3209.0,0.00018621,5]
[426015013,1782118233000,-160.0338645,0.000187,2]
[426015014,1782118233000,-986.80631249,0.000187,2]
[426014988,1782118233000,-2025.29416279,0.000172,2]
[426015016,1782118233000,-178.09,0.00018792,2]
[426015006,1782118233000,-160.0338645,0.000184,2]
[426014989,1782118233000,-2025.29416279,0.000174,2]
[426014967,1782118233000,-145.13331938,0.000162,2]
[426014985,1782118233000,-9999.99,0.00016922,2]
[426015015,1782118233000,-1734.62772924,0.00018723,2]
[426014958,1782118233000,-178.09,0.0001566,2]
[426014960,1782118233000,-536.95,0.00015873,2]
[426014959,1782118233000,-164.29860884,0.000158,2]
[426014962,1782118233000,-2025.29416279,0.000159,2]
[426014961,1782118233000,-233.12916094,0.000159,2]
[426014964,1782118233000,-233.12916094,0.00016,2]
[426014963,1782118233000,-1651.703093,0.0001596,2]
[426014966,1782118233000,-857.8177528,0.00016,2]
[426014965,1782118233000,-2025.29416279,0.00016,2]
[426014972,1782118233000,-673.39825999,0.00016338,2]
[426014968,1782118233000,-87.99584156,0.000162,2]
[426014971,1782118233000,-521.67367788,0.00016338,2]
[426014969,1782118233000,-2025.29416279,0.000162,2]
[426014974,1782118233000,-233.12916094,0.000164,2]
[426014973,1782118233000,-315.0,0.00016382,2]
[426014975,1782118233000,-2025.29416279,0.000164,2]
[426014977,1782118233000,-233.12916094,0.000165,2]
[426014976,1782118233000,-216.0,0.00016438,2]
[426014979,1782118233000,-1500.0,0.00016531,2]
[426014978,1782118233000,-2025.29416279,0.000165,2]
[426014980,1782118233000,-1191.63,0.00016676,2]
[426014981,1782118233000,-2025.29416279,0.000167,2]
[426014984,1782118233000,-3908.99,0.00016922,2]
[426014982,1782118233000,-168.98,0.00016712,2]
[426014983,1782118233000,-2025.29416279,0.000168,2]
[426014986,1782118233000,-2025.29416279,0.00017,2]
[426014987,1782118233000,-1555.5,0.00017079,2]
[426015017,1782118233000,-155.0,0.00019126,2]
[426014970,1782118233000,-158.22,0.00016292,2]
[426015020,1782118233000,-1798.80895522,0.00019271,2]
[426015052,1782118233000,-2000.0,0.00020803,2]
[426015049,1782118233000,-785.0,0.00020606,2]
[426015053,1782118233000,-4021.63,0.00020905,2]
[426015058,1782118233000,-358.19769023,0.00020915,2]
[426015055,1782118233000,-1030.0,0.00020915,2]
[426015056,1782118233000,-151.0,0.00020915,2]
[426015057,1782118233000,-423.94526798,0.00020915,2]
[426015060,1782118233000,-200.0,0.00020915,2]
[426015059,1782118233000,-1068.11,0.00020915,2]
[426015061,1782118233000,-151.0,0.00020915,2]
[426015063,1782118233000,-151.0,0.00020915,2]
[426015062,1782118233000,-151.0,0.00020915,2]
[426015064,1782118233000,-157.57092906,0.00020915,2]
[426015066,1782118233000,-1148.61238259,0.00020915,2]
[426015078,1782118233000,-1428.38747117,0.00020915,2]
[426015065,1782118233000,-1107.63007,0.00020915,2]
[426015067,1782118233000,-174.61919141,0.00020915,2]
[426015069,1782118233000,-1191.11104074,0.00020915,2]
[426015070,1782118233000,-1235.18214925,0.00020915,2]
[426015071,1782118233000,-151.0,0.00020915,2]
[426015068,1782118233000,-151.0,0.00020915,2]
[426015073,1782118233000,-1280.88388877,0.00020915,2]
[426015072,1782118233000,-578.20924308,0.00020915,2]
[426015074,1782118233000,-151.0,0.00020915,2]
[426015076,1782118233000,-1377.42282658,0.00020915,2]
[426015077,1782118233000,-151.0,0.00020915,2]
[426015018,1782118233000,-1125.00423533,0.00019178,2]
[426015050,1782118233000,-506.0,0.00020789,2]
[426015054,1782118233000,-500.0,0.00020915,2]
[426015075,1782118233000,-1328.27659266,0.00020915,2]
[426015048,1782118233000,-320.4,0.00020381,2]
[426015019,1782118233000,-1651.703093,0.00019188,2]
[426015051,1782118233000,-1651.703093,0.00020803,2]
[426015021,1782118233000,-181.85,0.00019355,7]
[426015022,1782118233000,-3561.0,0.00019437,2]
[426015025,1782118233000,-384.0,0.00019437,2]
[426015033,1782118233000,-164.0,0.0002,2]
[426015024,1782118233000,-219.61507501,0.00019437,2]
[426015026,1782118233000,-1360.0,0.00019437,2]
[426015027,1782118233000,-216.0,0.00019437,2]
[426015029,1782118233000,-1865.36488656,0.00019819,2]
[426015028,1782118233000,-934.0,0.00019437,2]
[426015032,1782118233000,-171.0,0.0002,2]
[426015030,1782118233000,-499.45360619,0.00019967,2]
[426015031,1782118233000,-186.565806,0.0002,2]
[426015023,1782118233000,-1056.38492499,0.00019437,2]
[426015035,1782118233000,-599.0,0.0002,2]
[426015034,1782118233000,-170.15358353,0.0002,2]
[426015046,1782118233000,-785.0,0.00020274,2]
[426015045,1782118233000,-9641.35,0.0002,2]
[426015043,1782118233000,-294.0,0.0002,2]
[426015044,1782118233000,-506.0,0.0002,2]
[426015040,1782118233000,-173.0,0.0002,2]
[426015047,1782118233000,-1934.38338736,0.00020367,2]
[426015037,1782118233000,-159.08835039,0.0002,2]
[426015042,1782118233000,-608.0,0.0002,2]
[426015039,1782118233000,-416.0,0.0002,2]
[426015038,1782118233000,-151.0,0.0002,2]
[426015036,1782118233000,-814.0,0.0002,2]
[426015041,1782118233000,-159.0,0.0002,2]
[426015106,1782118234000,-500.0,0.00020915,2]
[426015116,1782118234000,-201.93286098,0.00020915,2]
[426015110,1782118234000,-500.0,0.00020915,2]
[426015109,1782118234000,-1842.0326633,0.00020915,2]
[426015111,1782118234000,-152.0,0.00020915,2]
[426015113,1782118234000,-1910.18787185,0.00020915,2]
[426015115,1782118234000,-151.0,0.00020915,2]
[426015117,1782118234000,-500.0,0.00020915,2]
[426015114,1782118234000,-151.0,0.00020915,2]
[426015108,1782118234000,-151.0,0.00020915,2]
[426015122,1782118234000,-151.0,0.00020915,2]
[426015118,1782118234000,-500.0,0.00020915,2]
[426015121,1782118234000,-151.0,0.00020915,2]
[426015120,1782118234000,-152.0,0.00020915,2]
[426015123,1782118234000,-2095.81585754,0.00020915,2]
[426015126,1782118234000,-152.0,0.00020915,2]
[426015124,1782118234000,-500.0,0.00020915,2]
[426015127,1782118234000,-151.0,0.00020915,2]
[426015128,1782118234000,-151.0,0.00020915,2]
[426015125,1782118234000,-500.0,0.00020915,2]
[426015130,1782118234000,-500.0,0.00020915,2]
[426015107,1782118234000,-151.0,0.00020915,2]
[426015129,1782118234000,-500.0,0.00020915,2]
[426015119,1782118234000,-1980.8648231,0.00020915,2]
[426015104,1782118234000,-695.39793187,0.00020915,2]
[426015089,1782118234000,-327.98278615,0.00020915,2]
[426015102,1782118234000,-1776.30922209,0.00020915,2]
[426015132,1782118234000,-151.0,0.00020915,2]
[426015079,1782118234000,-500.0,0.00020915,2]
[426015080,1782118234000,-1481.2378076,0.00020915,2]
[426015081,1782118234000,-151.0,0.00020915,2]
[426015083,1782118234000,-500.0,0.00020915,2]
[426015082,1782118234000,-151.0,0.00020915,2]
[426015085,1782118234000,-1536.04360648,0.00020915,2]
[426015084,1782118234000,-151.0,0.00020915,2]
[426015086,1782118234000,-151.0,0.00020915,2]
[426015087,1782118234000,-2005.9555727,0.00020915,2]
[426015090,1782118234000,-500.0,0.00020915,2]
[426015105,1782118234000,-152.0,0.00020915,2]
[426015088,1782118234000,-1592.87721992,0.00020915,2]
[426015091,1782118234000,-586.80332927,0.00020915,2]
[426015094,1782118234000,-151.0,0.00020915,2]
[426015095,1782118234000,-151.0,0.00020915,2]
[426015093,1782118234000,-500.0,0.00020915,2]
[426015097,1782118234000,-500.0,0.00020915,2]
[426015101,1782118234000,-151.0,0.00020915,2]
[426015098,1782118234000,-152.0,0.00020915,2]
[426015096,1782118234000,-1651.81367706,0.00020915,2]
[426015099,1782118234000,-1712.93078311,0.00020915,2]
[426015100,1782118234000,-500.0,0.00020915,2]
[426015103,1782118234000,-500.0,0.00020915,2]
[426015092,1782118234000,-152.0,0.00020915,2]
[426015131,1782118234000,-152.0,0.00020915,2]
[426015112,1782118234000,-500.0,0.00020915,2]
[426015136,1782118234000,-152.0,0.00020915,2]
[426015163,1782118234000,-814.0,0.00021,2]
[426015166,1782118234000,-173.0,0.00021,2]
[426015169,1782118234000,-294.0,0.00021,2]
[426015165,1782118234000,-416.0,0.00021,2]
[426015170,1782118234000,-423.94526798,0.00021025,2]
[426015171,1782118234000,-151.0,0.00021025,2]
[426015167,1782118234000,-159.0,0.00021,2]
[426015173,1782118234000,-151.0,0.0002108,2]
[426015172,1782118234000,-423.94526798,0.0002108,2]
[426015175,1782118234000,-151.0,0.00021135,2]
[426015181,1782118234000,-151.0,0.00021245,2]
[426015164,1782118234000,-151.0,0.00021,2]
[426015176,1782118234000,-151.0,0.00021189,2]
[426015174,1782118234000,-423.94526798,0.00021135,2]
[426015179,1782118234000,-193.75266335,0.000212,2]
[426015177,1782118234000,-423.94526798,0.0002119,2]
[426015182,1782118234000,-785.0,0.00021271,2]
[426015178,1782118234000,-151.0,0.0002119,2]
[426015184,1782118234000,-785.76,0.00021273,2]
[426015183,1782118234000,-1612.37,0.00021273,2]
[426015186,1782118234000,-423.94526798,0.000213,2]
[426015185,1782118234000,-13768.25,0.00021273,2]
[426015187,1782118234000,-151.0,0.000213,2]
[426015139,1782118234000,-152.0,0.00020915,2]
[426015180,1782118234000,-423.94526798,0.00021245,2]
[426015162,1782118234000,-599.0,0.00021,2]
[426015168,1782118234000,-608.0,0.00021,2]
[426015158,1782118234000,-151.0,0.0002097,2]
[426015137,1782118234000,-151.0,0.00020915,2]
[426015135,1782118234000,-500.0,0.00020915,2]
[426015134,1782118234000,-151.0,0.00020915,2]
[426015133,1782118234000,-500.0,0.00020915,2]
[426015138,1782118234000,-151.0,0.00020915,2]
[426015141,1782118234000,-151.0,0.00020915,2]
[426015140,1782118234000,-500.0,0.00020915,2]
[426015161,1782118234000,-164.0,0.00021,2]
[426015144,1782118234000,-151.0,0.00020915,2]
[426015143,1782118234000,-500.0,0.00020915,2]
[426015149,1782118234000,-151.0,0.00020915,2]
[426015147,1782118234000,-151.0,0.00020915,2]
[426015146,1782118234000,-152.0,0.00020915,2]
[426015142,1782118234000,-151.0,0.00020915,2]
[426015148,1782118234000,-500.0,0.00020915,2]
[426015156,1782118234000,-785.0,0.00020939,2]
[426015145,1782118234000,-151.0,0.00020915,2]
[426015157,1782118234000,-423.94526798,0.0002097,2]
[426015159,1782118234000,-193.75266335,0.00021,2]
[426015155,1782118234000,-500.0,0.00020915,2]
[426015160,1782118234000,-171.0,0.00021,2]
[426015152,1782118234000,-500.0,0.00020915,2]
[426015153,1782118234000,-269.6725767,0.00020915,2]
[426015150,1782118234000,-152.0,0.00020915,2]
[426015151,1782118234000,-151.0,0.00020915,2]
[426015154,1782118234000,-152.0,0.00020915,2]
[426015197,1782118235000,-151.0,0.00021463,2]
[426015195,1782118235000,-157.5709291,0.00021463,2]
[426015198,1782118235000,-181.08010149,0.00021463,2]
[426015194,1782118235000,-152.71659717,0.00021463,2]
[426015196,1782118235000,-200.0,0.00021463,2]
[426015190,1782118235000,-193.75266335,0.000214,2]
[426015192,1782118235000,-151.0,0.0002141,2]
[426015188,1782118235000,-423.94526798,0.00021355,2]
[426015189,1782118235000,-151.0,0.00021355,2]
[426015199,1782118235000,-151.0,0.00021463,2]
[426015193,1782118235000,-358.19769023,0.00021463,2]
[426015206,1782118235000,-423.94526813,0.0002152,2]
[426015191,1782118235000,-423.94526798,0.0002141,2]
[426015200,1782118235000,-2080.17592889,0.00021463,2]
[426015201,1782118235000,-586.80332927,0.00021463,2]
[426015214,1782118235000,-66.2998334,0.00021707,2]
[426015209,1782118235000,-193.75266335,0.000216,2]
[426015213,1782118235000,-500.0,0.00021707,2]
[426015212,1782118235000,-500.0,0.00021707,2]
[426015210,1782118235000,-5519.0,0.000216,2]
[426015211,1782118235000,-785.0,0.00021603,2]
[426015208,1782118235000,-506.0,0.00021579,3]
[426015205,1782118235000,-155.0,0.00021517,2]
[426015202,1782118235000,-209.40437684,0.00021463,2]
[426015204,1782118235000,-151.0,0.00021465,2]
[426015203,1782118235000,-423.94526798,0.00021465,2]
[426015207,1782118235000,-151.0,0.0002152,2]
[426015219,1782118238000,-1000.0,0.000218,2]
[426015216,1782118238000,-433.7001666,0.00021707,2]
[426015218,1782118238000,-151.0,0.00021737,2]
[426015222,1782118238000,-5000.0,0.00021918,2]
[426015225,1782118238000,-200.0,0.00021918,2]
[426015223,1782118238000,-173.71,0.00021918,2]
[426015220,1782118238000,-461.83,0.0002185,2]
[426015226,1782118238000,-200.0,0.00021918,2]
[426015217,1782118238000,-249.65341803,0.00021707,2]
[426015221,1782118238000,-193.75266335,0.000219,2]
[426015224,1782118238000,-200.0,0.00021918,2]
[426015232,1782118238000,-151.0,0.00022,2]
[426015231,1782118238000,-814.0,0.00022,2]
[426015233,1782118238000,-416.0,0.00022,2]
[426015228,1782118238000,-171.0,0.00022,2]
[426015227,1782118238000,-785.0,0.00021936,2]
[426015229,1782118238000,-164.0,0.00022,2]
[426015230,1782118238000,-599.0,0.00022,2]
[426015264,1782118239000,-934.0,0.00022437,2]
[426015266,1782118239000,-1723.43,0.00022466,2]
[426015267,1782118239000,-1012.41,0.00022466,2]
[426015273,1782118239000,-151.0,0.00022559,2]
[426015269,1782118239000,-358.19769023,0.00022559,2]
[426015270,1782118239000,-200.0,0.00022559,2]
[426015272,1782118239000,-151.0,0.00022559,2]
[426015271,1782118239000,-194.72792766,0.00022559,2]
[426015276,1782118239000,-785.0,0.000226,2]
[426015274,1782118239000,-586.80332927,0.00022559,2]
[426015275,1782118239000,-225.18697532,0.00022559,2]
[426015268,1782118239000,-150.0,0.0002254,2]
[426015279,1782118239000,-441.96394646,0.00022903,2]
[426015278,1782118239000,-151.0,0.00022833,2]
[426015280,1782118239000,-785.0,0.00022933,2]
[426015286,1782118239000,-416.0,0.00023,2]
[426015282,1782118239000,-164.0,0.00023,2]
[426015285,1782118239000,-151.0,0.00023,2]
[426015281,1782118239000,-171.0,0.00023,2]
[426015287,1782118239000,-173.0,0.00023,2]
[426015289,1782118239000,-608.0,0.00023,2]
[426015283,1782118239000,-599.0,0.00023,2]
[426015288,1782118239000,-165.3264048,0.00023,2]
[426015284,1782118239000,-814.0,0.00023,2]
[426015261,1782118239000,-383.0,0.00022437,2]
[426015277,1782118239000,-236.31465493,0.00022625,2]
[426015260,1782118239000,-1276.0,0.00022437,2]
[426015248,1782118239000,-586.80332927,0.00022011,2]
[426015257,1782118239000,-151.52416228,0.00022407,2]
[426015290,1782118239000,-294.0,0.00023,2]
[426015234,1782118239000,-173.0,0.00022,2]
[426015241,1782118239000,-150.0,0.00022,2]
[426015242,1782118239000,-358.19769023,0.00022011,2]